bitfinex/quotes_SOLUSD_20251116
["timestamp","ask_amount","ask_price","bid_price","bid_amount"]
[1763335647160,100.0,138.26,138.25,32.05529285]
[1763335647874,100.0,138.26,138.25,37.24207859]
[1763335648077,100.0,138.26,138.25,32.05529285]
[1763335648777,100.7,138.26,138.25,5.60710578]
[1763335649153,100.0,138.23,138.21,11.67539629]
[1763335649353,100.0,138.23,138.22,10.80087547]
[1763335649577,100.0,138.23,138.22,28.25830578]
[1763335649875,100.0,138.23,138.22,43.96076883]
[1763335650376,100.0,138.23,138.22,55.63616512]
[1763335650553,100.0,138.23,138.22,43.24076883]
[1763335650750,100.0,138.23,138.22,28.25830578]
[1763335651283,100.0,138.23,138.22,33.45649196]
[1763335652181,100.0,138.23,138.22,5.60710578]
[1763335653163,100.0,138.23,138.22,43.97006946]
[1763335653367,100.0,138.23,138.22,21.31886946]
[1763335653681,100.0,138.26,138.25,32.44002769]
[1763335653891,100.0,138.26,138.25,54.95437498]
[1763335654196,100.0,138.27,138.26,9.78882769]
[1763335654374,100.0,138.27,138.26,26.92597524]
[1763335654683,100.0,138.3,138.29,32.44002769]
[1763335654888,100.0,138.3,138.29,48.85717524]
[1763335655183,100.0,138.3,138.29,49.57717524]
[1763335657104,100.0,138.3,138.29,5.20293599]
[1763335657253,100.0,138.3,138.29,18.60615548]
[1763335657457,100.0,138.3,138.29,41.255858]
[1763335657653,100.0,138.3,138.29,51.04468569]
[1763335657886,100.0,138.3,138.29,43.24565504]
[1763335658061,100.0,138.3,138.29,51.04374474]
[1763335658265,100.0,138.3,138.29,43.24565504]
[1763335658474,100.0,138.3,138.29,41.25966866]
[1763335658783,100.72,138.3,138.29,13.41012351]
[1763335658975,100.0,138.3,138.29,5.60710578]
[1763335659171,100.0,138.3,138.29,13.41012351]
[1763335659371,100.72,138.3,138.29,13.41012351]
[1763335659561,100.0,138.3,138.29,13.41012351]
[1763335659954,100.0,138.3,138.29,43.9720184]
[1763335660154,100.1,138.33,138.32,22.6512]
[1763335660379,100.1,138.33,138.32,54.96582413]
[1763335660581,100.1,138.33,138.32,55.68582413]
[1763335660884,100.1,138.33,138.32,43.9720184]
[1763335661384,100.1,138.33,138.32,59.69025942]
[1763335661587,100.0,138.33,138.32,43.9720184]
[1763335662576,100.0,138.33,138.32,43.2520184]
[1763335663089,100.0,138.33,138.32,55.6697431]
[1763335663265,100.0,138.33,138.32,43.9720184]
[1763335663876,100.0,138.33,138.32,43.96112683]
[1763335664401,100.0,138.33,138.32,38.35402105]
[1763335664568,100.0,138.33,138.32,54.93739803]
[1763335664767,100.0,138.33,138.29,11.6962712]
[1763335664768,100.0,138.31,138.29,11.6962712]
[1763335664975,0.1,138.36,138.28,7.80476929]
[1763335664976,100.0,138.29,138.28,7.80476929]
[1763335665197,100.0,138.29,138.28,18.61723458]
[1763335665780,100.0,138.29,138.28,51.05726227]
[1763335665982,100.0,138.29,138.28,43.25249298]
[1763335667797,100.0,138.29,138.28,33.46366529]
[1763335667993,100.0,138.29,138.28,5.60710578]
[1763335668173,100.0,138.29,138.28,28.25830578]
[1763335668793,100.72,138.29,138.28,5.60710578]
[1763335669792,100.0,138.29,138.28,33.01965555]
[1763335670402,100.0,138.29,138.28,26.93049013]
[1763335670992,100.0,138.29,138.28,32.31501041]
[1763335671396,100.0,138.29,138.28,26.70790463]
[1763335671609,100.0,138.29,138.28,32.31973437]
[1763335671784,100.0,138.29,138.28,33.03973437]
[1763335672104,100.0,138.29,138.28,26.93049013]
[1763335672483,100.0,138.29,138.28,26.21049013]
[1763335672683,100.0,138.29,138.28,26.93049013]
[1763335672876,100.0,138.29,138.28,21.32338435]
[1763335673279,100.0,138.3,138.29,9.78882769]
[1763335673581,100.0,138.3,138.29,33.46575666]
[1763335673779,100.0,138.3,138.29,43.25458435]
[1763335673980,100.0,138.3,138.29,54.97186162]
[1763335674191,100.0,138.3,138.29,43.25458435]
[1763335674509,100.0,138.3,138.29,54.97186162]
[1763335674880,100.0,138.3,138.29,36.0865746]
[1763335675107,100.0,138.3,138.29,61.30936542]
[1763335675316,100.0,138.3,138.29,26.94088815]
[1763335675811,100.0,138.34,138.33,9.78882769]
[1763335675978,100.0,138.34,138.33,43.26498237]
[1763335676179,100.0,138.34,138.33,21.33378237]
[1763335676604,100.0,138.34,138.33,20.61378237]
[1763335676985,100.72,138.34,138.33,45.21905195]
[1763335677184,100.72,138.34,138.33,5.2178489]
[1763335677425,100.72,138.34,138.32,7.83378851]
[1763335677578,100.0,138.3,138.29,12.82089429]
[1763335677986,100.0,138.3,138.26,11.74289727]
[1763335677987,100.0,138.3,138.28,5.60710578]
[1763335678486,100.0,138.27,138.26,11.74289727]
[1763335678680,100.0,138.27,138.26,17.35000305]
[1763335678875,100.0,138.27,138.26,27.13883074]
[1763335679518,100.0,138.27,138.26,27.85883074]
[1763335679802,100.0,138.27,138.26,16.11593347]
[1763335680504,100.0,138.27,138.26,10.50882769]
[1763335680812,100.0,138.27,138.26,16.11593347]
[1763335682402,100.0,138.27,138.26,5.60710578]
[1763335682602,100.0,138.27,138.26,17.38947607]
[1763335682846,100.0,138.27,138.26,5.60710578]
[1763335682994,5.60710578,138.35,138.24,9.78882769]
[1763335682995,100.0,138.25,138.24,11.78205804]
[1763335683323,100.0,138.21,138.2,11.78205804]
[1763335683485,100.0,138.21,138.2,5.60710578]
[1763335683814,100.0,138.21,138.2,16.09593347]
[1763335683983,100.0,138.21,138.2,15.39593347]
[1763335684179,100.0,138.21,138.2,33.49662286]
[1763335684393,100.0,138.21,138.2,21.70303925]
[1763335684807,9.78882769,138.37,138.2,21.70303925]
[1763335684808,100.0,138.24,138.23,32.44002769]
[1763335685214,100.0,138.24,138.23,38.04713347]
[1763335685512,100.0,138.24,138.23,38.74713347]
[1763335685897,0.1,138.36,138.23,38.74713347]
[1763335685898,100.0,138.25,138.24,9.78882769]
[1763335686104,100.0,138.25,138.24,16.09593347]
[1763335688514,100.0,138.25,138.24,10.48882769]
[1763335688716,100.0,138.25,138.24,38.74713347]
[1763335688898,100.0,138.25,138.24,16.09593347]
[1763335689102,100.0,138.25,138.24,21.70303925]
[1763335689298,100.0,138.25,138.24,41.26730719]
[1763335689515,100.0,138.25,138.24,21.33393177]
[1763335690933,0.1,138.36,138.32,9.78882769]
[1763335690934,100.0,138.33,138.32,9.78882769]
[1763335691104,100.0,138.33,138.32,20.63393177]
[1763335692042,100.0,138.33,138.32,21.33393177]
[1763335692508,100.1,138.36,138.35,32.44002769]
[1763335692707,100.1,138.36,138.35,43.28513177]
[1763335694314,100.0,138.36,138.35,43.28513177]
[1763335696135,100.0,138.36,138.35,43.98513177]
[1763335697014,100.0,138.34,138.33,11.76887019]
[1763335697214,2.0,138.4,138.29,22.4502114]
[1763335697215,100.0,138.32,138.29,11.76887019]
[1763335697426,100.0,138.3,138.28,11.76887019]
[1763335697734,100.0,138.3,138.29,10.84932931]
[1763335698136,100.0,138.3,138.29,5.60710578]
[1763335698450,100.0,138.3,138.29,10.85054419]
[1763335699519,100.0,138.3,138.29,33.10824207]
[1763335699714,100.0,138.3,138.29,21.33937188]
[1763335699916,100.0,138.3,138.29,26.94647766]
[1763335700111,100.0,138.3,138.29,17.03949601]
[1763335700440,100.0,138.26,138.25,11.7960576]
[1763335700628,100.0,138.26,138.25,5.60710578]
[1763335701246,100.0,138.26,138.25,22.65118488]
[1763335703015,100.0,138.26,138.25,32.44001257]
[1763335703329,100.0,138.26,138.25,20.64395497]
[1763335703523,100.0,138.26,138.25,17.05149227]
[1763335703709,100.0,138.26,138.25,22.65859805]
[1763335703915,100.0,138.26,138.25,5.60710578]
[1763335705958,100.0,138.22,138.2,11.80347077]
[1763335706119,100.0,138.22,138.21,20.64535912]
[1763335706514,100.0,138.22,138.21,21.34535912]
[1763335707542,42.67030303,159.7,138.21,21.34535912]
[1763335707543,100.0,138.26,138.25,9.78882769]
[1763335707747,100.0,138.26,138.25,20.64535912]
[1763335707924,100.0,138.26,138.25,21.34535912]
[1763335708114,100.0,138.26,138.25,20.64535912]
[1763335708931,100.0,138.26,138.25,21.34535912]
[1763335709130,100.0,138.26,138.25,20.64535912]
[1763335710051,100.0,138.26,138.25,21.34535912]
[1763335710235,100.0,138.26,138.25,20.64535912]
[1763335710747,100.0,138.26,138.25,43.29655912]
[1763335710951,100.0,138.26,138.25,25.08412526]
[1763335711138,42.92580106,138.48,138.25,25.08412526]
[1763335711139,100.0,138.29,138.28,22.6512]
[1763335711343,100.0,138.29,138.28,37.26649757]
[1763335711844,100.0,138.29,138.28,32.01707192]
[1763335712246,100.0,138.29,138.28,39.88939805]
[1763335712439,100.0,138.29,138.28,32.01707192]
[1763335713021,100.0,138.29,138.28,43.82047833]
[1763335713218,100.0,138.29,138.28,32.01707192]
[1763335713421,100.0,138.29,138.28,47.7322569]
[1763335713650,100.0,138.29,138.28,47.0522569]
[1763335714020,100.0,138.29,138.28,5.24635729]
[1763335714240,111.36587192,138.29,138.25,11.80465985]
[1763335714449,100.0,138.26,138.24,7.87845639]
[1763335714650,100.0,138.26,138.24,5.91274799]
[1763335714842,100.0,138.26,138.25,5.91274799]
[1763335715032,100.0,138.26,138.24,5.91274799]
[1763335715231,100.0,138.26,138.25,5.91274799]
[1763335716035,100.0,138.26,138.25,9.36587192]
[1763335716851,100.0,138.26,138.24,11.80465985]
[1763335717050,100.0,138.26,138.25,9.36587192]
[1763335717554,100.0,138.26,138.25,17.23889442]
[1763335717752,100.0,138.26,138.25,9.36587192]
[1763335717932,100.0,138.26,138.25,17.23910285]
[1763335718133,100.0,138.26,138.25,9.36587192]
[1763335718943,100.0,138.26,138.25,21.17053177]
[1763335719337,100.0,138.26,138.25,31.63935946]
[1763335719536,100.0,138.26,138.25,26.84020272]
[1763335719759,100.0,138.26,138.25,36.20607464]
[1763335719931,100.0,138.26,138.25,30.95935946]
[1763335720134,100.0,138.26,138.25,36.2061538]
[1763335721456,100.0,138.26,138.25,25.08149395]
[1763335721633,103.2,138.38,138.28,32.44002769]
[1763335721634,100.0,138.29,138.28,32.44002769]
[1763335721839,100.0,138.29,138.28,47.05269395]
[1763335722044,100.0,138.29,138.28,37.68682203]
[1763335722246,100.0,138.29,138.28,47.73269395]
[1763335723942,100.0,138.29,138.28,38.36682203]
[1763335724150,100.0,138.29,138.28,47.73269395]
[1763335725137,100.0,138.29,138.28,27.89799434]
[1763335725343,100.0,138.29,138.28,21.17582255]
[1763335725555,100.0,138.29,138.28,43.82702255]
[1763335725859,100.0,138.29,138.28,32.01707192]
[1763335726064,100.0,138.29,138.28,22.6512]
[1763335726363,100.0,138.29,138.28,32.01707192]
[1763335727137,2.0,138.53,138.32,9.78882769]
[1763335727338,100.0,138.35,138.34,9.78882769]
[1763335727559,100.0,138.35,138.34,37.21227804]
[1763335727738,100.0,138.35,138.34,21.51419509]
[1763335727945,100.0,138.38,138.37,32.44002769]
[1763335728252,100.0,138.39,138.38,9.78882769]
[1763335728457,100.0,138.39,138.38,29.1091773]
[1763335728659,100.0,138.39,138.38,19.32034961]
[1763335728854,100.0,138.39,138.38,29.1091773]
[1763335729055,100.0,138.39,138.38,29.7891773]
[1763335729765,100.0,138.39,138.38,9.95447769]
[1763335730061,100.0,138.39,138.38,14.07498221]
[1763335730564,100.0,138.39,138.38,4.70911029]
[1763335731639,100.0,138.39,138.38,10.59563192]
[1763335731844,121.15469961,138.39,138.38,4.70911029]
[1763335732568,100.0,138.34,138.33,5.88652163]
[1763335732869,100.0,138.34,138.33,10.60129607]
[1763335733181,100.0,138.34,138.33,4.71477444]
[1763335737469,100.0,138.34,138.33,21.92654832]
[1763335737678,100.0,138.34,138.33,14.08064636]
[1763335737963,100.0,138.34,138.33,21.93667463]
[1763335738168,100.0,138.34,138.33,14.08064636]
[1763335739673,100.0,138.34,138.33,19.97930222]
[1763335739855,100.0,138.34,138.33,21.94244636]
[1763335740678,100.0,138.34,138.33,4.71477444]
[1763335741054,143.80589961,138.34,138.33,4.71477444]
[1763335741252,143.80589961,138.34,138.28,5.90390157]
[1763335741253,100.0,138.3,138.28,5.90390157]
[1763335741480,100.0,138.3,138.29,10.63411406]
[1763335741974,100.0,138.3,138.29,4.73021249]
[1763335741975,119.15469961,138.3,138.29,4.73021249]
[1763335742155,100.0,138.25,138.23,5.90390157]
[1763335742355,100.0,138.23,138.21,7.8618]
[1763335742678,100.0,138.23,138.22,12.59325081]
[1763335743049,109.36587192,138.23,138.22,4.73145081]
[1763335743464,100.0,138.2,138.19,6.11234199]
[1763335743658,109.36587192,138.2,138.19,10.84531698]
[1763335744066,109.36587192,138.2,138.19,4.93297499]
[1763335744260,100.0,138.2,138.19,10.8439438]
[1763335744569,109.36587192,138.2,138.19,4.93297499]
[1763335744781,109.36587192,138.2,138.19,10.84286487]
[1763335745082,100.0,138.2,138.19,10.84286487]
[1763335745276,100.0,138.2,138.19,10.83986088]
[1763335745580,109.36587192,138.2,138.19,10.83986088]
[1763335746455,109.36587192,138.2,138.19,4.93297499]
[1763335746957,109.36587192,138.2,138.19,10.83986088]
[1763335747274,109.36587192,138.2,138.19,4.93297499]
[1763335747467,100.0,138.2,138.19,4.93297499]
[1763335747774,109.36587192,138.2,138.19,10.83986088]
[1763335748077,100.0,138.2,138.19,12.79477499]
[1763335748270,100.0,138.2,138.19,14.97884691]
[1763335748470,100.0,138.2,138.19,37.63004691]
[1763335748783,100.0,138.2,138.19,42.86373325]
[1763335749280,100.0,138.2,138.19,52.65256094]
[1763335750870,100.0,138.2,138.19,37.63004691]
[1763335751267,2.0,138.32,138.19,42.85993869]
[1763335751477,100.0,138.2,138.19,9.98882769]
[1763335751790,100.0,138.23,138.22,22.6512]
[1763335752086,100.0,138.23,138.22,39.11791129]
[1763335752299,100.0,138.23,138.22,39.79791129]
[1763335752456,100.0,138.23,138.22,28.03592519]
[1763335752780,100.0,138.23,138.22,37.40179711]
[1763335754372,100.0,138.23,138.22,49.15633697]
[1763335754863,100.0,138.23,138.22,4.70472519]
[1763335755066,100.0,138.23,138.22,21.91189872]
[1763335755575,100.0,138.23,138.22,14.07059711]
[1763335755883,100.0,138.23,138.22,4.70472519]
[1763335755884,121.15469961,138.23,138.22,4.70472519]
[1763335756057,100.0,138.2,138.19,0.2]
[1763335756260,109.36587192,138.2,138.19,4.91090514]
[1763335757288,143.80589961,138.2,138.19,0.2]
[1763335757856,143.80589961,138.2,138.19,10.26587192]
[1763335757857,100.0,138.2,138.19,10.26587192]
[1763335758056,100.0,138.23,138.22,22.6512]
[1763335758277,100.0,138.23,138.22,44.55521873]
[1763335758477,100.0,138.23,138.22,36.72265153]
[1763335759076,100.0,138.23,138.22,45.25242695]
[1763335759364,100.0,138.23,138.22,37.42265153]
[1763335759566,100.0,138.23,138.22,47.21147922]
[1763335759766,100.0,138.23,138.22,52.42763023]
[1763335761191,100.0,138.23,138.22,47.21147922]
[1763335761795,100.0,138.23,138.22,37.42265153]
[1763335762392,100.0,138.23,138.22,14.07145153]
[1763335762700,100.0,138.23,138.22,10.58092411]
[1763335763002,100.0,138.23,138.22,4.70557961]
[1763335763794,100.0,138.23,138.22,10.58092411]
[1763335764095,100.0,138.23,138.22,4.70557961]
[1763335765709,100.0,138.23,138.22,19.94679603]
[1763335765894,100.0,138.23,138.22,14.77145153]
[1763335766068,100.0,138.23,138.22,5.40557961]
[1763335766390,100.0,138.23,138.22,36.30322932]
[1763335766580,100.0,138.23,138.22,24.56027922]
[1763335767398,100.0,138.23,138.22,14.07145153]
[1763335767605,100.0,138.23,138.22,21.89608091]
[1763335768284,100.0,138.23,138.22,14.07145153]
[1763335768603,100.0,138.23,138.22,21.89608091]
[1763335769195,100.0,138.23,138.22,14.77145153]
[1763335769383,100.0,138.23,138.22,36.29072919]
[1763335770003,100.0,138.23,138.22,24.56027922]
[1763335770305,100.0,138.24,138.23,9.78882769]
[1763335770510,100.0,138.24,138.23,14.07145153]
[1763335770711,100.0,138.24,138.23,21.88354962]
[1763335771206,100.0,138.24,138.23,14.07145153]
[1763335772788,100.0,138.24,138.23,10.31292348]
[1763335773304,100.0,138.24,138.23,22.02497629]
[1763335774306,100.0,138.24,138.23,20.10175117]
[1763335774491,100.0,138.24,138.23,25.32448794]
[1763335774898,100.0,138.24,138.23,10.31292348]
[1763335775086,100.0,138.24,138.23,4.70557961]
[1763335775410,100.0,138.24,138.23,10.31292348]
[1763335775713,100.0,138.24,138.23,18.15980579]
[1763335775888,100.0,138.24,138.23,10.31292348]
[1763335776408,100.0,138.24,138.23,10.5980033]
[1763335776610,117.39617156,138.24,138.23,4.70557961]
[1763335777485,111.78882769,138.24,138.23,4.70557961]
[1763335777909,117.39617156,138.24,138.23,4.70557961]
[1763335779689,107.60734387,138.24,138.23,4.70557961]
[1763335780401,105.60734387,138.24,138.23,4.70557961]
[1763335780716,107.60734387,138.24,138.23,4.70557961]
[1763335781209,100.0,138.24,138.23,10.5980033]
[1763335782292,100.0,138.24,138.23,4.70557961]
[1763335783401,105.60734387,138.24,138.23,4.70557961]
[1763335783812,100.0,138.24,138.23,10.59805582]
[1763335783991,100.0,138.24,138.23,4.70557961]
[1763335784308,139.17617156,138.24,138.23,4.70557961]
[1763335785706,139.17617156,138.24,138.19,0.2]
[1763335785707,11.78882769,138.2,138.19,0.2]
[1763335785922,44.78351543,138.2,138.19,0.2]
[1763335786222,67.01894016,138.2,138.19,0.2]
[1763335786810,67.01894016,138.2,138.19,4e-08]
[1763335787713,61.41159629,138.2,138.19,4e-08]
[1763335788013,67.01894016,138.2,138.19,4e-08]
[1763335788918,100.0,138.14,138.13,5.89247621]
[1763335789132,122.6512,138.12,138.11,6.0994109]
[1763335789836,27.8427686,138.2,138.09,0.66]
[1763335789837,100.0,138.11,138.09,0.66]
[1763335790136,100.0,138.08,138.07,0.2]
[1763335790491,100.0,138.08,138.07,0.86]
[1763335791133,100.0,138.08,138.07,6.46734387]
[1763335791713,100.0,138.06,138.05,0.2]
[1763335791919,100.0,138.06,138.05,5.80734387]
[1763335792425,100.0,138.06,138.05,15.59617156]
[1763335792645,100.0,138.06,138.05,27.3615432]
[1763335792816,100.0,138.06,138.05,15.59617156]
[1763335793303,100.0,138.06,138.05,27.36519497]
[1763335793812,100.0,138.06,138.05,28.02519497]
[1763335795214,100.0,138.06,138.05,18.23636728]
[1763335795413,100.0,138.06,138.05,38.90737156]
[1763335796121,100.0,138.06,138.05,0.2]
[1763335796321,100.0,138.06,138.05,5.80734387]
[1763335796615,100.0,138.06,138.05,0.2]
[1763335797318,100.66,138.06,138.05,0.2]
[1763335797513,100.0,138.06,138.05,5.80734387]
[1763335798020,100.0,138.06,138.05,0.2]
[1763335799812,100.66,138.06,138.05,0.2]
[1763335800194,100.0,138.06,138.05,0.2]
[1763335800711,100.0,138.06,138.05,6.49734387]
[1763335800930,0.66,138.17,138.05,6.49734387]
[1763335801104,100.0,138.06,138.05,0.2]
[1763335801439,100.0,138.06,138.05,38.24737156]
[1763335801608,21.82373695,138.28,138.05,38.24737156]
[1763335801609,100.0,138.07,138.06,9.78882769]
[1763335801809,100.0,138.07,138.06,16.08617156]
[1763335802199,100.0,138.07,138.06,27.83990237]
[1763335802598,100.0,138.07,138.05,0.2]
[1763335802832,100.0,138.07,138.06,6.29734387]
[1763335803127,100.0,138.07,138.05,5.80734387]
[1763335803623,100.66,138.07,138.05,0.2]
[1763335804011,100.0,138.07,138.05,0.2]
[1763335804206,0.66,138.06,138.05,0.2]
[1763335805102,100.0,138.07,138.05,0.2]
[1763335805329,0.66,138.06,138.05,0.2]
[1763335805504,18.05617156,138.06,138.05,0.1]
[1763335806247,6.26734387,138.06,138.05,0.1]
[1763335806435,100.0,138.07,138.05,0.1]
[1763335806619,0.56,138.06,138.05,0.1]
[1763335806805,123.2112,138.07,138.05,0.1]
[1763335807013,128.81854387,138.07,138.05,0.1]
[1763335808134,128.25854387,138.07,138.05,0.1]
[1763335808514,128.81854387,138.07,138.05,0.1]
[1763335809142,128.81854387,138.07,137.98,22.6512]
[1763335809143,100.0,137.99,137.97,11.75373081]
[1763335809324,100.0,137.99,137.94,0.69]
[1763335809325,100.0,137.97,137.95,11.75373081]
[1763335809511,100.0,137.97,137.94,0.69]
[1763335809821,100.0,137.97,137.93,0.2]
[1763335810210,105.60734387,137.97,137.93,0.2]
[1763335810720,100.0,137.97,137.93,0.89]
[1763335811111,100.0,137.97,137.96,0.89]
[1763335811429,100.0,137.97,137.96,16.28617156]
[1763335811913,100.0,137.97,137.96,0.2]
[1763335812110,100.0,137.97,137.96,6.49734387]
[1763335812709,100.0,137.97,137.96,0.2]
[1763335813115,105.60734387,137.97,137.96,0.2]
[1763335813723,106.06734387,137.97,137.96,0.2]
[1763335814019,105.60734387,137.97,137.96,0.2]
[1763335814328,106.06734387,137.97,137.96,0.2]
[1763335815154,115.85617156,137.97,137.96,0.2]
[1763335815354,100.46,137.97,137.96,0.2]
[1763335815645,128.71854387,137.97,137.96,0.2]
[1763335816012,106.06734387,137.97,137.96,0.2]
[1763335816766,105.60734387,137.97,137.96,0.2]
[1763335817289,128.25854387,137.97,137.96,0.2]
[1763335818037,122.6512,137.97,137.96,0.2]
[1763335818227,128.25854387,137.97,137.96,0.2]
[1763335818434,100.0,137.97,137.96,0.86]
[1763335818626,100.0,137.97,137.96,10.64882769]
[1763335819558,100.0,137.97,137.96,0.2]
[1763335819721,105.60734387,137.97,137.96,0.2]
[1763335819927,128.25854387,137.97,137.96,0.2]
[1763335820131,128.71854387,137.97,137.96,0.2]
[1763335820956,128.71854387,137.97,137.96,0.86]
[1763335820957,100.0,137.97,137.96,0.86]
[1763335821141,100.0,137.97,137.96,10.64882769]
[1763335821337,100.0,137.97,137.96,16.25617156]
[1763335821534,100.0,137.98,137.97,9.78882769]
[1763335821723,100.0,137.98,137.97,16.05617156]
[1763335822035,50.0,137.98,137.97,27.80990237]
[1763335822234,0.46,138.1,137.97,16.05617156]
[1763335822454,100.0,137.98,137.96,25.68691064]
[1763335822642,100.0,137.98,137.96,9.98882769]
[1763335822832,100.0,137.98,137.97,0.66]
[1763335823355,100.0,137.98,137.97,10.44882769]
[1763335823553,100.0,137.98,137.97,31.75425451]
[1763335823732,100.0,137.99,137.98,9.78882769]
[1763335823935,100.0,137.99,137.98,21.66351543]
[1763335824770,100.0,137.99,137.98,31.70105289]
[1763335824951,42.30282306,138.2,137.98,31.70105289]
[1763335824952,22.6512,138.08,137.98,38.70737156]
[1763335825127,2.0,138.16,137.96,15.84488133]
[1763335825128,100.0,137.99,137.97,9.78882769]
[1763335825456,50.0,137.99,137.97,9.78882769]
[1763335825662,100.0,138.02,138.01,9.78882769]
[1763335825844,100.0,138.02,138.01,10.44882769]
[1763335826253,100.0,138.02,138.01,16.05617156]
[1763335826456,100.0,138.02,138.01,10.44882769]
[1763335826662,100.0,138.02,138.01,16.05617156]
[1763335827653,100.0,138.05,138.04,32.44002769]
[1763335827837,100.0,138.05,138.04,38.04737156]
[1763335828039,100.0,138.05,138.04,54.36271091]
[1763335828240,100.0,138.05,138.04,9.78882769]
[1763335828469,100.0,138.02,138.01,11.7707238]
[1763335828963,100.0,138.02,138.0,7.84996889]
[1763335828964,105.60734387,138.02,138.0,7.84996889]
[1763335829161,5.60734387,138.01,138.0,7.84996889]
[1763335829372,100.0,138.0,137.98,11.7707238]
[1763335829664,100.0,137.99,137.98,11.7707238]
[1763335830248,100.0,137.99,137.98,10.46882769]
[1763335830448,100.0,137.99,137.98,22.26048055]
[1763335830737,100.0,137.97,137.96,15.59617156]
[1763335831455,100.0,137.97,137.96,9.98882769]
[1763335831652,100.0,137.97,137.96,12.00160296]
[1763335831960,100.0,137.97,137.96,8.07089814]
[1763335832547,105.60734387,137.97,137.96,8.07089814]
[1763335832858,100.0,137.97,137.96,8.07089814]
[1763335833348,100.0,137.97,137.96,0.2]
[1763335833550,100.0,137.97,137.96,0.88]
[1763335833757,100.0,137.97,137.96,0.2]
[1763335833943,100.0,137.97,137.96,0.88]
[1763335834144,100.0,137.97,137.96,22.47043065]
[1763335834345,100.0,137.97,137.96,9.98882769]
[1763335834766,100.0,137.97,137.96,22.47043065]
[1763335835335,9.41578907,138.0,137.96,22.47043065]
[1763335835336,0.46,138.08,137.96,31.88621972]
[1763335835541,9.41578907,138.12,137.97,10.46882769]
[1763335835542,100.0,137.98,137.97,10.46882769]
[1763335836349,100.0,137.98,137.97,33.12002769]
[1763335836550,50.0,137.98,137.97,10.46882769]
[1763335836756,50.0,137.98,137.97,39.81799218]
[1763335837364,100.0,137.99,137.98,32.44002769]
[1763335837566,100.0,137.99,137.98,42.53581676]
[1763335840261,100.0,137.99,137.98,62.46919218]
[1763335840654,50.0,137.99,137.98,71.62400502]
[1763335840845,100.0,138.0,137.99,9.78882769]
[1763335841171,100.0,138.0,137.99,48.97096914]
[1763335841368,100.0,137.98,137.97,19.67056331]
[1763335841584,100.0,137.98,137.97,9.41578907]
[1763335841746,100.0,137.98,137.97,35.64208769]
[1763335841946,100.0,137.98,137.97,26.22629862]
[1763335842254,100.0,137.98,137.97,19.88461676]
[1763335842445,100.0,137.98,137.97,35.64208769]
[1763335842653,100.0,137.98,137.97,19.88461676]
[1763335842858,100.0,137.98,137.97,10.46882769]
[1763335843071,100.0,137.98,137.97,9.78882769]
[1763335843455,100.46,137.98,137.97,11.82705265]
[1763335843676,132.52698907,137.98,137.96,8.08966688]
[1763335843975,9.41578907,137.97,137.96,8.08966688]
[1763335844145,132.06698907,137.98,137.96,8.08966688]
[1763335844350,122.6512,137.98,137.96,8.08966688]
[1763335844580,132.42698907,137.98,137.96,8.08966688]
[1763335846391,9.77578907,137.97,137.96,0.2]
[1763335846557,9.77578907,137.97,137.96,0.1]
[1763335847356,32.42698907,137.97,137.96,0.1]
[1763335848173,100.0,137.98,137.96,0.1]
[1763335848369,100.0,137.98,137.96,8.66966688]
[1763335848550,109.41578907,137.98,137.97,7.88966688]